[Event "Czech Open Rapid G1 2024"]
[Site "Pardubice"]
[Date "2024.07.17"]
[Round "1.12"]
[White "Konopka, Michal"]
[Black "Dostal, Radim"]
[Result "1-0"]
[Annotator "RC"]
[ECO "A34"]
[WhiteElo "2326"]
[BlackElo "1961"]
[PlyCount "73"]
[EventDate "2024.07.16"]
[EventType "swiss"]
[EventCountry "CZE"]
[SourceTitle "playchess.com"]
[Source "ChessBase"]
[SourceQuality "1"]
[TimeControl "1200+10"]

1. Nf3 {[%emt 0:00:02]} c5 {[%emt 0:00:00]} 2. c4 {[%emt 0:00:03]} Nc6 {[%emt 0:00:01]} 3. Nc3 {[%emt 0:00:03]} e5 {[%emt 0:00:06]} 4. e3 {[%emt 0:00:16]} Nf6 {[%emt 0:00:02]} 5. d4 {[%emt 0:00:04]} cxd4 {[%emt 0:00:14]} 6. exd4 {[%emt 0:00:02]} e4 {[%emt 0:00:14]} 7. Ne5 {[%emt 0:00:18]} Bb4 {[%emt 0:00:14]} 8. Be2 {[%emt 0:00:46]} O-O {[%emt 0:00:18]} 9. O-O {[%emt 0:00:23]} Re8 {[%emt 0:01:11]} 10. Bf4 {[%emt 0:00:39]} Qb6 {[%emt 0:03:32]} 11. c5 {[%emt 0:00:58]} Qa5 {[%emt 0:00:30]} 12. Nc4 {[%emt 0:00:12]} Qd8 {[%emt 0:00:25]} 13. Nd6 {[%emt 0:01:02]} Bxc3 {[%emt 0:01:09]} 14. bxc3 {[%emt 0:00:16]} Nd5 {[%emt 0:00:31]} 15. Qb3 {[%emt 0:00:20]} Nce7 {[%emt 0:06:07]} 16. Bg5 {[%emt 0:05:02]} Rf8 {[%emt 0:01:34]} 17. Bc4 {[%emt 0:00:02]} Nf6 {[%emt 0:01:04]} 18. Bxf7+ {[%emt 0:02:04]} Kh8 {[%emt 0:00:07]} 19. Bc4 {[%emt 0:00:03]} Qc7 {[%emt 0:00:12]} 20. Rae1 {[%emt 0:00:12]} b6 {[%emt 0:01:19]} 21. Bxf6 {[%emt 0:03:21]} gxf6 {[%emt 0:00:02]} 22. Rxe4 {[%emt 0:00:16]} Ng6 {[%emt 0:00:01]} 23. Nb5 {[%emt 0:01:32]} Qd8 {[%emt 0:00:14]} 24. Bd5 {[%emt 0:00:24]} Rb8 {[%emt 0:00:31]} 25. Nxa7 {[%emt 0:00:15]} Ba6 {[%emt 0:00:12]} 26. Rfe1 {[%emt 0:00:34]} bxc5 {[%emt 0:00:04]} 27. Qa3 {[%emt 0:00:02]} f5 {[%emt 0:03:01]} 28. R4e3 {[%emt 0:00:02]} f4 {[%emt 0:00:13]} 29. Rh3 {[%emt 0:01:37]} Be2 {[%emt 0:00:43]} 30. Qxc5 {[%emt 0:01:28]} Qg5 {[%emt 0:00:46]} 31. Be4 {[%emt 0:00:30]} Qg4 {[%emt 0:00:26]} 32. f3 {[%emt 0:00:29]} Qe6 {[%emt 0:00:09]} 33. d5 {[%emt 0:00:13]} Qa6 {[%emt 0:00:02]} 34. Nc6 {[%emt 0:00:25]} dxc6 {[%emt 0:00:21]} 35. Bxg6 {[%emt 0:00:02]} cxd5 {[%emt 0:00:12]} 36. Qd4+ {[%emt 0:00:06]} Qf6 {[%emt 0:00:10]} 37. Rxh7+ {[%emt 0:00:07]} 1-0

[Event "Czech Open Rapid G1 2024"]
[Site "Pardubice"]
[Date "2024.07.17"]
[Round "1.13"]
[White "Tyshniuk, Roman"]
[Black "Cerveny, Martin"]
[Result "0-1"]
[Annotator "RC"]
[ECO "C41"]
[WhiteElo "1903"]
[BlackElo "2325"]
[PlyCount "83"]
[EventDate "2024.07.16"]
[EventType "swiss"]
[EventCountry "CZE"]
[SourceTitle "playchess.com"]
[Source "ChessBase"]
[SourceQuality "1"]
[TimeControl "1200+10"]

1. d4 {[%emt 0:00:03]} d6 {[%emt 0:00:01]} 2. e4 {[%emt 0:00:03]} Nf6 {[%emt 0:00:01]} 3. Nc3 {[%emt 0:00:01]} e5 {[%emt 0:00:03]} 4. Nf3 {[%emt 0:00:06]} Nbd7 {[%emt 0:00:02]} 5. Bc4 {[%emt 0:00:09]} Be7 {[%emt 0:00:02]} 6. a4 {[%emt 0:00:13]} O-O {[%emt 0:00:04]} 7. O-O {[%emt 0:00:04]} a5 {[%emt 0:00:03]} 8. Re1 {[%emt 0:00:10]} c6 {[%emt 0:00:05]} 9. b3 {[%emt 0:01:33]} Qc7 {[%emt 0:00:04]} 10. Ba3 {[%emt 0:01:48]} Nb6 {[%emt 0:00:13]} 11. Bf1 {[%emt 0:01:20]} Bg4 {[%emt 0:00:07]} 12. dxe5 {[%emt 0:04:58]} dxe5 {[%emt 0:00:06]} 13. Bxe7 {[%emt 0:00:06]} Qxe7 {[%emt 0:00:02]} 14. Qd3 {[%emt 0:00:05]} Nfd7 {[%emt 0:00:59]} 15. Nd2 {[%emt 0:00:16]} Nc5 {[%emt 0:00:10]} 16. Qg3 {[%emt 0:00:25]} Bh5 {[%emt 0:01:31]} 17. f3 {[%emt 0:02:04]} Rad8 {[%emt 0:00:21]} 18. Rad1 {[%emt 0:00:23]} f6 {[%emt 0:03:20]} 19. Nc4 {[%emt 0:00:39]} Nxc4 {[%emt 0:00:02]} 20. Bxc4+ {[%emt 0:00:01]} Bf7 {[%emt 0:00:02]} 21. Bxf7+ {[%emt 0:00:35]} Kxf7 {[%emt 0:00:03]} 22. Qf2 {[%emt 0:00:47]} Ne6 {[%emt 0:00:54]} 23. Ne2 {[%emt 0:00:55]} Rxd1 {[%emt 0:00:41]} 24. Rxd1 {[%emt 0:00:01]} Rd8 {[%emt 0:00:01]} 25. Rxd8 {[%emt 0:02:42]} Qxd8 {[%emt 0:00:02]} 26. Qa7 {[%emt 0:00:06]} Qd2 {[%emt 0:01:17]} 27. Qxb7+ {[%emt 0:00:13]} Kg6 {[%emt 0:00:02]} 28. Kf1 {[%emt 0:00:12]} Qd1+ {[%emt 0:00:08]} 29. Kf2 {[%emt 0:00:01]} Qxc2 {[%emt 0:00:02]} 30. Qc8 {[%emt 0:00:13]} Qxb3 {[%emt 0:02:15]} 31. Qxc6 {[%emt 0:00:01]} Qa2 {[%emt 0:00:01]} 32. Qc8 {[%emt 0:02:21]} h6 {[%emt 0:00:49]} 33. Kg3 {[%emt 0:00:28]} Kh7 {[%emt 0:04:34]} 34. Nc3 {[%emt 0:00:12]} Qb3 {[%emt 0:00:01]} 35. Nd5 {[%emt 0:00:10]} Nd4 {[%emt 0:00:11]} 36. Qd7 {[%emt 0:01:06]} Qd1 {[%emt 0:01:46]} 37. Nxf6+ {[%emt 0:01:14]} Kg6 {[%emt 0:00:01]} 38. Nd5 {[%emt 0:00:01]} Kh7 {[%emt 0:04:27]} 39. Kh3 {[%emt 0:00:19]} Qd2 {[%emt 0:00:27]} 40. Qg4 {[%emt 0:00:28]} Qa2 {[%emt 0:00:55]} 41. Ne7 {[%emt 0:00:28]} Qf7 {[%emt 0:00:02]} 42. Nf5 {[%emt 0:00:10]} 0-1

[Event "Czech Open Rapid G1 2024"]
[Site "Pardubice"]
[Date "2024.07.17"]
[Round "1.14"]
[White "Bures, Jaroslav"]
[Black "Karpinets, Andrian"]
[Result "1-0"]
[Annotator "TA"]
[ECO "C58"]
[WhiteElo "2418"]
[BlackElo "1759"]
[PlyCount "27"]
[EventDate "2024.07.16"]
[EventType "swiss"]
[EventCountry "CZE"]
[SourceTitle "playchess.com"]
[Source "ChessBase"]
[SourceQuality "1"]
[TimeControl "1200+10"]

{[%evp 15,26,38,58,38,41,36,64,64,317,323,335,297,29999]} 1. e4 {[%emt 0:00:02]} e5 {[%emt 0:00:01]} 2. Nf3 {[%emt 0:00:01]} Nc6 {[%emt 0:00:02]} 3. Bc4 {[%emt 0:00:01]} Nf6 {[%emt 0:00:01]} 4. Ng5 {[%emt 0:00:02]} d5 {[%emt 0:00:02]} 5. exd5 {[%emt 0:00:02]} Na5 {[%emt 0:00:04]} 6. Bb5+ {[%emt 0:00:02]} Bd7 {[%emt 0:00:02]} 7. Qe2 {[%emt 0:01:33]} Bd6 {[%emt 0:00:07]} 8. Nc3 {[%emt 0:03:56]} O-O {[%emt 0:00:15][%cal Of6d5]} 9. Bxd7 {[%emt 0:00:55]} Qxd7 {[%emt 0:00:33]} 10. a3 {[%emt 0:00:52] Against Bb4} c5 {[%emt 0:03:00]} 11. O-O {[%emt 0:00:54]} Bc7 $2 {[%emt 0:01:01][%mdl 8192] [#]} ({Better is} 11... Be7 $14) 12. b4 $1 $18 {[%emt 0:00:10]} Nxd5 {[%emt 0:00:53]} 13. Qd3 {[%emt 0:01:08][%csl Gg5][%cal Rd3h7]} Rad8 $2 {[%emt 0:06:07]} (13... Nf6 $18) 14. Qxh7# {[%emt 0:00:19] Black got outplayed after the opening.   Weighted Error Value: White=0.09 (flawless) /Black=1.59.  Loses game:     	---       	Black=1      Mistake:       	---       	Black=1      Inaccurate:     	---       	Black=1      OK:         	White=1     	---        Best:        	White=1     	---        Strong:       	White=1     	---} 1-0

[Event "Czech Open Rapid G1 2024"]
[Site "Pardubice"]
[Date "2024.07.17"]
[Round "1.15"]
[White "Kavalir, Jan"]
[Black "Kusa, Jakub"]
[Result "0-1"]
[Annotator "TA"]
[ECO "C44"]
[WhiteElo "1992"]
[BlackElo "2423"]
[PlyCount "66"]
[EventDate "2024.07.16"]
[EventType "swiss"]
[EventCountry "CZE"]
[SourceTitle "playchess.com"]
[Source "ChessBase"]
[SourceQuality "1"]
[TimeControl "1200+10"]

{[%evp 10,65,7,0,5,-14,-20,-31,-25,-39,-33,-26,-31,-125,-11,-239,-260,-260,-266,-254,-225,-319,-277,-370,-368,-369,-362,-373,-314,-320,-320,-326,-319,-348,-338,-314,-366,-356,-341,-347,-337,-381,-333,-466,-466,-464,-445,-439,-414,-767,-597,-548,-429,-1062,-778,-29997,-29998,-29999]} 1. e4 {[%emt 0:00:01]} e5 {[%emt 0:00:04]} 2. d3 {[%emt 0:00:01]} Nf6 {[%emt 0:00:42]} 3. Nf3 {[%emt 0:00:02]} Nc6 {[%emt 0:00:03]} 4. Be2 {[%emt 0:00:03]} Bc5 {[%emt 0:00:03]} 5. O-O {[%emt 0:00:04]} d6 {[%emt 0:00:02]} 6. c3 {[%emt 0:00:02]} a5 {[%emt 0:00:11]} 7. b3 {[%emt 0:00:06]} O-O {[%emt 0:00:11]} 8. h3 {[%emt 0:00:05]} h6 {[%emt 0:00:01] Black is slightly better.} 9. d4 {[%emt 0:00:48]} Ba7 {[%emt 0:00:17]} 10. d5 $1 {[%emt 0:01:29]} Ne7 {[%emt 0:00:06]} 11. Qc2 {[%emt 0:00:19] [#]} (11. Bd3 $15) 11... g5 {[%emt 0:01:00]} (11... Nh5 $1 $17 {...Ng3 would now be deadly.} 12. Nd4 exd4 13. Bxh5 c6) 12. Nxg5 $2 {[%emt 0:01:16]} hxg5 $19 {[%emt 0:00:22]} 13. Bxg5 {[%emt 0:00:01]} Nh7 {[%emt 0:00:05]} 14. Bh4 {[%emt 0:00:51]} Qe8 {[%emt 0:00:16]} 15. Kh2 {[%emt 0:00:32]} (15. Bb5 $142 Bd7 (15... Qxb5 $2 16. Bxe7 Qe8 17. Bxf8 $19) 16. Bxd7 Qxd7 17. Bxe7 Qxe7 18. Nd2) 15... f5 {[%emt 0:01:07]} 16. f4 {[%emt 0:00:43]} exf4 {[%emt 0:00:16] Threatens to win with ...Ng6.} 17. Nd2 {[%emt 0:01:39]} fxe4 {[%emt 0:03:21]} 18. Qxe4 {[%emt 0:00:37]} Ng6 {[%emt 0:01:13]} 19. Qxe8 {[%emt 0:01:06]} Rxe8 {[%emt 0:00:01]} 20. Bh5 {[%emt 0:00:10]} Kg7 {[%emt 0:00:13]} 21. Bxg6 {[%emt 0:00:43]} Kxg6 {[%emt 0:00:02]} 22. Rxf4 {[%emt 0:00:06]} Be3 {[%emt 0:00:21][%csl LRd2,LRf4]} 23. Re4 {[%emt 0:00:34]} Bf5 {[%emt 0:00:25]} 24. Rxe8 {[%emt 0:00:01]} Rxe8 {[%emt 0:00:02]} 25. Nf3 {[%emt 0:00:40]} Be4 {[%emt 0:00:12]} 26. c4 {[%emt 0:01:49]} Bxf3 {[%emt 0:00:48]} 27. gxf3 {[%emt 0:00:01]} Bf4+ {[%emt 0:00:02]} 28. Kg1 {[%emt 0:00:29]} Re2 {[%emt 0:00:13] White must now prevent ...Ng5.} 29. Bd8 {[%emt 0:00:36]} (29. Kf1 $142 Rh2 30. Re1) 29... Ng5 {[%emt 0:00:03]} 30. Kf1 {[%emt 0:00:14]} Rc2 {[%emt 0:02:17]} 31. Bxc7 {[%emt 0:00:26]} (31. Re1 $142) 31... Nxf3 {[%emt 0:00:13] [#] ( -> ...Be3)} 32. Bxa5 {[%emt 0:00:16]} Be3 {[%emt 0:00:26][%csl Ge3][%cal Rc2f2]} 33. Bb4 {[%emt 0:01:31]} Rf2# {[%emt 0:00:07] White got outplayed after the opening.   Weighted Error Value: White=0.78/Black=0.39.  Loses game:     	White=1     	---        Mistake:       	White=4     	Black=1      Inaccurate:     	White=3     	---        OK:         	White=8     	Black=11     Strong:       	White=1     	---} 0-1

[Event "Czech Open Rapid G1 2024"]
[Site "Pardubice"]
[Date "2024.07.17"]
[Round "1.16"]
[White "Prokofiev, Valentyn"]
[Black "Gschwendtner, Stanislav"]
[Result "1-0"]
[Annotator "RC"]
[ECO "A34"]
[WhiteElo "2337"]
[BlackElo "2011"]
[PlyCount "77"]
[EventDate "2024.07.16"]
[EventType "swiss"]
[EventCountry "CZE"]
[SourceTitle "playchess.com"]
[Source "ChessBase"]
[SourceQuality "1"]
[TimeControl "1200+10"]

1. Nf3 {[%emt 0:00:03]} c5 {[%emt 0:00:02]} 2. c4 {[%emt 0:00:01]} Nf6 {[%emt 0:00:02]} 3. Nc3 {[%emt 0:00:02]} d5 {[%emt 0:00:01]} 4. cxd5 {[%emt 0:00:04]} Nxd5 {[%emt 0:00:02]} 5. g3 {[%emt 0:00:02]} g6 {[%emt 0:00:01]} 6. Bg2 {[%emt 0:00:01]} Nc7 {[%emt 0:00:06]} 7. O-O {[%emt 0:00:03]} Bg7 {[%emt 0:00:01]} 8. d3 {[%emt 0:00:01]} O-O {[%emt 0:00:04]} 9. Be3 {[%emt 0:00:02]} Ne6 {[%emt 0:00:14]} 10. Nd2 {[%emt 0:00:16]} Nc6 {[%emt 0:00:03]} 11. Rc1 {[%emt 0:00:45]} Ned4 {[%emt 0:00:09]} 12. Na4 {[%emt 0:00:25]} Rb8 {[%emt 0:01:28]} 13. Nxc5 {[%emt 0:00:10]} b6 {[%emt 0:00:08]} 14. Ncb3 {[%emt 0:00:55]} Bb7 {[%emt 0:00:13]} 15. Nxd4 {[%emt 0:00:21]} Nxd4 {[%emt 0:00:03]} 16. Bxb7 {[%emt 0:00:05]} Rxb7 {[%emt 0:00:05]} 17. Bxd4 {[%emt 0:00:35]} Bxd4 {[%emt 0:00:08]} 18. Qc2 {[%emt 0:00:03]} h5 {[%emt 0:00:10]} 19. Nf3 {[%emt 0:00:03]} Bf6 {[%emt 0:00:34]} 20. Qc6 {[%emt 0:00:08]} Rd7 {[%emt 0:00:07]} 21. b3 {[%emt 0:00:02]} e6 {[%emt 0:00:09]} 22. Rc4 {[%emt 0:00:10]} Qe7 {[%emt 0:00:18]} 23. Rfc1 {[%emt 0:00:09]} Rfd8 {[%emt 0:00:03]} 24. Qa4 {[%emt 0:00:29]} g5 {[%emt 0:00:13]} 25. h4 {[%emt 0:00:29]} g4 {[%emt 0:00:32]} 26. Ne1 {[%emt 0:00:05]} e5 {[%emt 0:01:35]} 27. Ng2 {[%emt 0:00:19]} Rd4 {[%emt 0:00:27]} 28. Ne3 {[%emt 0:00:21]} Qe6 {[%emt 0:01:21]} 29. Qxa7 {[%emt 0:01:15]} R4d7 {[%emt 0:01:14]} 30. Rc7 {[%emt 0:00:32]} e4 {[%emt 0:00:13]} 31. Rxd7 {[%emt 0:00:01]} Rxd7 {[%emt 0:00:00]} 32. Qa8+ {[%emt 0:00:01]} Kg7 {[%emt 0:00:04]} 33. Qxe4 {[%emt 0:00:02]} Qxe4 {[%emt 0:00:10]} 34. dxe4 {[%emt 0:00:01]} Rd2 {[%emt 0:00:17]} 35. Rc2 {[%emt 0:00:01]} Rd7 {[%emt 0:00:21]} 36. Rc6 {[%emt 0:00:05]} b5 {[%emt 0:00:22]} 37. Nf5+ {[%emt 0:00:12]} Kg6 {[%emt 0:00:08]} 38. Nd6 {[%emt 0:00:02]} b4 {[%emt 0:01:06]} 39. Ne8 {[%emt 0:00:02]} 1-0

[Event "Czech Open Rapid G1 2024"]
[Site "Pardubice"]
[Date "2024.07.17"]
[Round "1.17"]
[White "Sikora, Lukas"]
[Black "Burdalev, Kirill"]
[Result "0-1"]
[Annotator "RC"]
[ECO "C50"]
[WhiteElo "1928"]
[BlackElo "2348"]
[PlyCount "48"]
[EventDate "2024.07.16"]
[EventType "swiss"]
[EventCountry "CZE"]
[SourceTitle "playchess.com"]
[Source "ChessBase"]
[SourceQuality "1"]
[TimeControl "1200+10"]

1. e4 {[%emt 0:00:03]} e5 {[%emt 0:00:01]} 2. Nf3 {[%emt 0:00:03]} Nc6 {[%emt 0:00:02]} 3. Bc4 {[%emt 0:00:02]} Bc5 {[%emt 0:00:01]} 4. a4 {[%emt 0:00:04]} Nf6 {[%emt 0:00:13]} 5. d3 {[%emt 0:00:04]} h6 {[%emt 0:00:05]} 6. c3 {[%emt 0:00:10]} a6 {[%emt 0:00:17]} 7. b4 {[%emt 0:00:05]} Be7 {[%emt 0:00:20]} 8. O-O {[%emt 0:00:40]} O-O {[%emt 0:00:09]} 9. h3 {[%emt 0:00:04]} d5 {[%emt 0:00:27]} 10. exd5 {[%emt 0:00:12]} Nxd5 {[%emt 0:00:01]} 11. Re1 {[%emt 0:00:14]} Nb6 {[%emt 0:00:26]} 12. Bb3 {[%emt 0:00:11]} Bf5 {[%emt 0:00:04]} 13. a5 {[%emt 0:01:22]} Nc8 {[%emt 0:01:39]} 14. Nxe5 {[%emt 0:00:04]} Nxe5 {[%emt 0:00:04]} 15. Rxe5 {[%emt 0:00:02]} Qxd3 {[%emt 0:00:09]} 16. Be3 {[%emt 0:04:19]} Bf6 {[%emt 0:01:01]} 17. Qxd3 {[%emt 0:00:18]} Bxd3 {[%emt 0:00:02]} 18. Rc5 {[%emt 0:00:10]} c6 {[%emt 0:00:26]} 19. Na3 {[%emt 0:01:27]} Ne7 {[%emt 0:02:36]} 20. Nc2 {[%emt 0:02:00]} Nf5 {[%emt 0:03:30]} 21. Bf4 {[%emt 0:04:41]} Rad8 {[%emt 0:01:53]} 22. Re1 {[%emt 0:02:46]} Nd6 {[%emt 0:01:09]} 23. f3 {[%emt 0:01:04]} Nb5 {[%emt 0:00:14]} 24. Be5 {[%emt 0:03:27]} Be7 {[%emt 0:00:05]} 0-1

[Event "Czech Open Rapid G1 2024"]
[Site "Pardubice"]
[Date "2024.07.17"]
[Round "1.18"]
[White "Dobrowolski, Piotr"]
[Black "Stocek, Martin"]
[Result "1-0"]
[Annotator "RC"]
[ECO "B10"]
[WhiteElo "2412"]
[BlackElo "2110"]
[PlyCount "85"]
[EventDate "2024.07.16"]
[EventType "swiss"]
[EventCountry "CZE"]
[SourceTitle "playchess.com"]
[Source "ChessBase"]
[SourceQuality "1"]
[TimeControl "1200+10"]

1. e4 {[%emt 0:00:01]} c6 {[%emt 0:00:00]} 2. Nf3 {[%emt 0:00:13]} d5 {[%emt 0:00:02]} 3. d3 {[%emt 0:00:01]} Bg4 {[%emt 0:00:16]} 4. h3 {[%emt 0:00:02]} Bh5 {[%emt 0:00:29]} 5. Qe2 {[%emt 0:00:03]} e6 {[%emt 0:00:17]} 6. g4 {[%emt 0:00:07]} Bg6 {[%emt 0:00:01]} 7. Bg2 {[%emt 0:00:14]} Nf6 {[%emt 0:00:23]} 8. Nc3 {[%emt 0:03:21]} Bb4 {[%emt 0:00:36]} 9. Nd2 {[%emt 0:00:02]} dxe4 {[%emt 0:03:23]} 10. dxe4 {[%emt 0:01:07]} e5 {[%emt 0:00:36]} 11. Nc4 {[%emt 0:01:18]} Qc7 {[%emt 0:03:31]} 12. O-O {[%emt 0:02:06]} b5 {[%emt 0:01:38]} 13. Ne3 {[%emt 0:00:01]} O-O {[%emt 0:04:27]} 14. Nf5 {[%emt 0:01:06]} Re8 {[%emt 0:00:37]} 15. a4 {[%emt 0:02:06]} bxa4 {[%emt 0:00:52]} 16. Nxa4 {[%emt 0:00:44]} Bf8 {[%emt 0:00:45]} 17. Be3 {[%emt 0:00:26]} Nbd7 {[%emt 0:01:07]} 18. Rfd1 {[%emt 0:00:29]} Nb6 {[%emt 0:00:13]} 19. Nc5 {[%emt 0:00:51]} Bxf5 {[%emt 0:00:35]} 20. gxf5 {[%emt 0:01:04]} Red8 {[%emt 0:00:28]} 21. Rxd8 {[%emt 0:02:14]} Rxd8 {[%emt 0:00:06]} 22. Bf3 {[%emt 0:00:09]} Nfd7 {[%emt 0:00:27]} 23. Nxd7 {[%emt 0:00:41]} Rxd7 {[%emt 0:00:11]} 24. Qa6 {[%emt 0:00:30]} Qb7 {[%emt 0:00:21]} 25. Be2 {[%emt 0:00:08]} Qxa6 {[%emt 0:00:33]} 26. Rxa6 {[%emt 0:00:02]} Rb7 {[%emt 0:00:38]} 27. Ra5 {[%emt 0:00:19]} Bd6 {[%emt 0:00:24]} 28. c4 {[%emt 0:00:38]} Bc7 {[%emt 0:00:39]} 29. Ra6 {[%emt 0:00:01]} h6 {[%emt 0:00:38]} 30. f6 {[%emt 0:00:28]} g5 {[%emt 0:00:21]} 31. c5 {[%emt 0:00:58]} Na8 {[%emt 0:00:01]} 32. Rxc6 {[%emt 0:00:18]} Rxb2 {[%emt 0:00:01]} 33. Bc4 {[%emt 0:00:01]} Rb8 {[%emt 0:00:29]} 34. Bd5 {[%emt 0:00:14]} Bd8 {[%emt 0:00:07]} 35. Ra6 {[%emt 0:00:21]} Nc7 {[%emt 0:00:02]} 36. Rxa7 {[%emt 0:00:01]} Nxd5 {[%emt 0:00:21]} 37. exd5 {[%emt 0:00:02]} Bxf6 {[%emt 0:00:01]} 38. c6 {[%emt 0:00:48]} Kf8 {[%emt 0:00:34]} 39. d6 {[%emt 0:00:12]} Rc8 {[%emt 0:00:11]} 40. Rc7 {[%emt 0:00:34]} Rd8 {[%emt 0:00:10]} 41. d7 {[%emt 0:00:08]} Be7 {[%emt 0:00:14]} 42. Rc8 {[%emt 0:00:06]} Kg7 {[%emt 0:00:01]} 43. Bb6 {[%emt 0:00:01]} 1-0

[Event "Czech Open Rapid G1 2024"]
[Site "Pardubice"]
[Date "2024.07.17"]
[Round "1.19"]
[White "Sladek, Vladislav"]
[Black "Kuegel, Tobias"]
[Result "0-1"]
[Annotator "TA"]
[ECO "B21"]
[WhiteElo "1928"]
[BlackElo "2416"]
[PlyCount "52"]
[EventDate "2024.07.16"]
[EventType "swiss"]
[EventCountry "CZE"]
[SourceTitle "playchess.com"]
[Source "ChessBase"]
[SourceQuality "1"]
[TimeControl "1200+10"]

{[%evp 14,52,-22,-19,-18,-27,-4,-6,-4,-43,-38,-65,-57,-83,-63,-115,-77,-103,-82,-173,-176,-190,-185,-210,-100,-264,-265,-264,-265,-258,-261,-275,-264,-278,-273,-297,-266,-391,-391,-1175,-1190]} 1. e4 {[%emt 0:00:03]} c5 {[%emt 0:00:05]} 2. d4 {[%emt 0:00:13]} cxd4 {[%emt 0:00:05]} 3. c3 {[%emt 0:00:05]} dxc3 {[%emt 0:00:01]} 4. Nxc3 {[%emt 0:00:02]} Nc6 {[%emt 0:00:03]} 5. Nf3 {[%emt 0:00:09]} e6 {[%emt 0:00:02]} 6. Bc4 {[%emt 0:00:12]} Bb4 {[%emt 0:00:03]} 7. O-O {[%emt 0:00:47]} Nge7 {[%emt 0:00:03]} 8. Qe2 {[%emt 0:00:40]} O-O {[%emt 0:00:39]} 9. Rd1 {[%emt 0:00:14]} Ng6 {[%emt 0:00:51]} 10. Bg5 {[%emt 0:00:28]} Be7 {[%emt 0:00:17] The position is equal.} 11. Be3 {[%emt 0:00:59]} a6 {[%emt 0:00:44]} 12. Rac1 {[%emt 0:00:08]} b5 {[%emt 0:00:54]} 13. Bb3 {[%emt 0:01:53]} Bb7 {[%emt 0:00:10]} 14. Qd2 {[%emt 0:02:53]} ({White should try} 14. Nd2 $15) 14... d6 {[%emt 0:00:53]} 15. Ng5 {[%emt 0:02:23][%cal Ob3e6]} Qd7 {[%emt 0:02:37]} 16. Bc2 {[%emt 0:03:38] [#]} (16. Ne2 $17) 16... Nce5 $1 $19 {[%emt 0:00:59]} 17. b3 {[%emt 0:00:53]} Rac8 {[%emt 0:01:38]} 18. f4 {[%emt 0:00:41]} Bxg5 {[%emt 0:01:22]} (18... Ng4 $19 {Threatens to win with ...Nxe3.} 19. e5 h6 20. Bxg6 hxg5 (20... fxg6 21. exd6 hxg5 22. dxe7 $19)) 19. fxe5 $2 {[%emt 0:00:41] White does not recover from this.} (19. fxg5 $17 Ng4 20. Bd4) 19... Bxe3+ {[%emt 0:00:14]} 20. Qxe3 {[%emt 0:00:01]} Nxe5 {[%emt 0:00:02]} 21. Ne2 {[%emt 0:01:06]} Rfd8 {[%emt 0:00:38]} 22. Qg3 {[%emt 0:00:21]} Qe7 {[%emt 0:01:11]} 23. Nf4 {[%emt 0:00:13]} Qf6 {[%emt 0:03:07]} 24. Rf1 {[%emt 0:00:17]} Qh6 {[%emt 0:00:02]} 25. a4 {[%emt 0:01:36]} (25. Bb1 {was necessary.}) 25... b4 {[%emt 0:00:23]} 26. Rf2 $2 {[%emt 0:01:04] [#]} (26. Bb1) 26... Rc3 {[%emt 0:00:11] Weighted Error Value: White=0.64/Black=0.14 (very precise) .  Loses game:     	White=1     	---        Mistake:       	White=4     	Black=1      Inaccurate:     	White=4     	Black=1      OK:         	White=2     	Black=8      Best:        	---       	Black=1      Strong:       	---       	Black=1} 0-1